bitfinex/quotes_ETHUSD_20241212
["timestamp","ask_amount","ask_price","bid_price","bid_amount"]
[1734012475823,0.07931289,3938.6,3937.8,0.8314]
[1734012476121,0.07931289,3938.5,3937.8,0.8314]
[1734012476280,0.07931289,3938.4,3937.8,0.8314]
[1734012476477,0.07931289,3938.3,3937.8,0.8314]
[1734012476685,0.07931289,3938.2,3937.8,0.8314]
[1734012476927,0.07931289,3938.2,3937.3,3.0]
[1734012476928,0.07931289,3938.1,3937.4,0.7783]
[1734012477089,0.07931289,3938.1,3936.6,0.7783]
[1734012477090,0.09734675,3938.0,3936.6,0.7783]
[1734012477292,2.53975,3937.4,3936.6,0.7783]
[1734012477821,0.26184729,3938.1,3937.2,0.7783]
[1734012478095,0.07931664,3938.0,3937.3,2.53975]
[1734012478227,2.53912,3938.4,3937.2,0.7783]
[1734012478570,2.53917,3938.3,3937.2,3.7783]
[1734012478768,0.24918687,3938.9,3937.2,0.7783]
[1734012478930,0.01802741,3938.8,3937.2,0.7783]
[1734012479125,0.51201875,3938.0,3937.2,0.7783]
[1734012479923,1.05082861,3939.4,3937.4,0.7715]
[1734012480166,3.04219102,3939.1,3937.8,3.0]
[1734012480376,2.53874,3939.0,3937.9,0.7983]
[1734012480575,0.3042231,3939.0,3937.9,0.7983]
[1734012480729,0.3042231,3939.0,3938.1,2.53926]
[1734012481071,0.07930473,3938.9,3937.9,0.7983]
[1734012481241,0.07930473,3938.9,3938.1,2.53927]
[1734012481443,0.07930473,3938.9,3938.2,0.55]
[1734012481794,0.07930473,3938.9,3938.0,0.55]
[1734012481948,0.07930473,3939.2,3938.2,2.53921]
[1734012482146,0.07930473,3939.1,3938.0,0.55]
[1734012482453,2.48,3939.8,3938.0,0.55]
[1734012482454,0.07930473,3939.7,3938.4,0.7685]
[1734012482661,0.07930473,3939.6,3938.5,0.55]
[1734012482978,1.05082861,3940.7,3938.4,0.7685]
[1734012482979,0.07930473,3940.0,3938.8,4.3185]
[1734012483130,0.07930473,3940.7,3938.8,6.85729]
[1734012483330,2.53788,3940.3,3939.1,3.0]
[1734012483529,0.49574818,3940.0,3939.1,3.0]
[1734012484273,2.5382,3939.8,3938.8,1.3185]
[1734012484572,2.61245935,3940.8,3939.2,2.53858]
[1734012484724,2.53777,3940.5,3939.4,0.7772]
[1734012484930,0.0792811,3940.4,3939.5,3.0]
[1734012485125,0.0792811,3940.6,3939.4,3.7772]
[1734012485342,2.53782,3940.4,3939.4,3.7772]
[1734012486269,2.53802,3940.1,3939.4,0.7772]
[1734012486472,0.31628759,3940.7,3939.4,0.7772]
[1734012486640,2.53807,3940.0,3939.4,0.7772]
[1734012487046,2.53795,3940.2,3939.4,0.7772]
[1734012487245,0.07927906,3940.1,3939.4,0.7772]
[1734012487545,2.61697906,3940.6,3939.4,0.7772]
[1734012487748,0.37080298,3940.5,3939.4,0.7772]
[1734012488067,0.07927906,3940.4,3939.4,0.7772]
[1734012488256,0.07927906,3940.4,3939.5,3.0]
[1734012488461,0.29152392,3940.5,3939.5,3.0]
[1734012488648,2.5377,3940.6,3939.5,2.53835]
[1734012488975,0.07927205,3940.5,3939.6,3.0]
[1734012489194,2.61682205,3940.8,3939.6,5.53832]
[1734012489399,2.53755,3940.8,3939.6,5.53832]
[1734012489554,2.53755,3940.8,3939.4,0.7772]
[1734012489555,2.53742,3941.1,3939.9,2.53813]
[1734012489752,0.07926628,3941.0,3940.0,2.53806]
[1734012490057,0.07926027,3941.0,3940.1,3.7594]
[1734012490433,3.29457338,3941.1,3940.1,3.7594]
[1734012490635,0.07926005,3941.0,3940.1,3.7594]
[1734012491282,0.50347138,3941.1,3940.1,3.7594]
[1734012491476,0.01194589,3942.0,3940.1,3.7594]
[1734012491477,0.07925921,3941.3,3940.2,0.8155]
[1734012491686,1.31496338,3942.8,3940.2,0.8155]
[1734012491687,0.07925921,3941.8,3940.5,3.0]
[1734012491990,0.51970585,3941.6,3940.2,0.8155]
[1734012492137,2.53726,3941.3,3940.2,0.8155]
[1734012492481,2.53762,3940.7,3940.2,0.8155]
[1734012492677,0.51970585,3941.6,3940.2,0.8155]
[1734012492881,2.53736,3941.1,3940.2,0.8155]
[1734012493156,0.51970585,3941.6,3940.2,0.8155]
[1734012493309,0.0792579,3941.5,3940.2,0.8155]
[1734012493608,2.53737,3941.1,3940.2,0.8155]
[1734012494108,2.53744,3941.0,3940.2,0.8155]
[1734012494416,2.53712,3941.5,3940.2,3.8155]
[1734012494614,0.07925794,3941.4,3940.3,2.53784]
[1734012494799,2.53712,3941.5,3940.4,3.0]
[1734012495369,0.01194589,3942.5,3940.9,0.8245]
[1734012495708,2.53671,3942.2,3941.0,3.0]
[1734012495882,0.0792457,3942.1,3941.1,3.0]
[1734012496078,2.53644,3942.6,3941.1,3.0]
[1734012496278,2.5367,3942.2,3941.1,3.0]
[1734012496607,2.53674,3942.1,3941.1,3.0]
[1734012496808,2.53681,3942.0,3940.9,0.8245]
[1734012497010,2.53666,3942.2,3941.0,3.0]
[1734012497572,2.53674,3942.1,3941.0,3.0]
[1734012497919,0.55,3942.2,3941.0,3.0]
[1734012497920,2.53678,3942.0,3941.0,3.0]
[1734012498272,0.55,3942.2,3940.9,0.8245]
[1734012498610,0.01802741,3942.1,3940.9,0.8245]
[1734012498828,2.53697,3941.7,3940.5,0.7606]
[1734012499117,2.53725,3941.3,3940.5,0.7606]
[1734012499320,2.5373,3941.2,3940.5,0.7606]
[1734012499521,2.53641,3942.6,3940.5,0.7606]
[1734012499672,2.53641,3942.6,3940.9,0.8326]
[1734012500041,2.53641,3942.6,3941.0,2.53736]
[1734012500042,2.53662,3942.3,3941.0,2.53736]
[1734012500313,2.53662,3942.3,3940.9,0.8326]
[1734012500314,2.53671,3942.2,3941.3,0.8005]
[1734012500826,2.53679,3942.0,3941.3,0.8005]
[1734012501318,2.53685,3941.9,3941.3,0.8005]
[1734012501816,2.54797455,3943.2,3941.3,0.8005]
[1734012501986,2.53635,3942.7,3941.8,0.8005]
[1734012502180,0.3340295,3943.1,3941.8,0.8005]
[1734012502181,2.53646,3942.5,3941.8,0.8005]
[1734012503028,0.25479746,3943.1,3941.8,0.8005]
[1734012503520,3.05104135,3942.9,3941.8,0.8005]
[1734012504123,2.53589,3943.4,3941.9,3.0]
[1734012504321,2.53579,3943.6,3942.4,3.0]
[1734012504567,2.53602,3943.2,3942.5,0.8271]
[1734012504923,3.04497167,3943.6,3942.5,0.8271]
[1734012504924,2.53591,3943.4,3942.5,0.8271]
[1734012505462,0.50922167,3943.6,3942.5,3.8271]
[1734012505664,0.81371684,3943.6,3942.5,3.8271]
[1734012505824,0.50922167,3943.6,3942.5,0.8271]
[1734012506021,3.04497167,3943.6,3942.5,0.8271]
[1734012506228,2.53575,3943.6,3942.5,3.36355]
[1734012506452,2.53541,3944.2,3942.6,2.53638]
[1734012506653,2.53562,3943.9,3942.7,3.7903]
[1734012506870,2.61464893,3944.1,3942.9,0.754]
[1734012507161,0.51390591,3943.9,3943.0,3.0]
[1734012507527,2.5355,3944.0,3943.0,3.0]
[1734012508127,2.5355,3944.0,3942.9,0.754]
[1734012508365,2.48,3944.8,3942.9,0.754]
[1734012508529,2.53582,3943.5,3942.9,0.754]
[1734012508862,0.65020736,3944.6,3942.9,0.754]
[1734012509177,2.61436878,3944.5,3942.9,0.754]
[1734012509371,2.53543,3944.1,3943.0,3.0]
[1734012509540,0.07919878,3944.0,3943.0,3.0]
[1734012509875,0.07919878,3944.0,3943.4,0.7869]
[1734012510072,0.07919384,3944.6,3943.4,0.7869]
[1734012510226,2.53533,3944.3,3943.4,0.7869]
[1734012510972,0.01802741,3944.6,3943.4,0.7869]
[1734012511185,2.53577,3943.6,3942.3,3.32349]
[1734012511365,0.01802741,3944.2,3942.3,0.7869]
[1734012511678,2.53589,3943.4,3942.3,0.7869]
[1734012512004,0.01802741,3944.1,3942.3,2.96920161]
[1734012512144,0.55,3944.5,3942.7,2.96920161]
[1734012512331,0.07920591,3944.4,3943.5,2.96920161]
[1734012512531,2.6988945,3944.7,3943.6,0.7873]
[1734012512532,0.07920591,3944.6,3943.6,0.7873]
[1734012512843,0.07920591,3944.5,3943.6,0.7873]
[1734012513048,0.07920591,3944.6,3943.6,3.7873]
[1734012513258,0.07920591,3944.5,3943.6,3.7873]
[1734012513571,0.07920591,3944.6,3943.6,0.7873]
[1734012513727,0.07920591,3944.5,3943.6,3.7873]
[1734012513927,0.07920591,3944.6,3943.6,3.7873]
[1734012514126,2.53518,3944.5,3943.6,3.7873]
[1734012514328,0.1637945,3944.7,3944.0,0.7873]
[1734012514557,0.1637945,3944.7,3944.0,3.7873]
[1734012515138,0.1637945,3944.7,3944.1,3.32272]
[1734012515466,0.1637945,3944.7,3944.2,0.828]
[1734012516269,2.6988645,3944.7,3944.2,0.828]
[1734012516566,0.1637945,3944.7,3944.2,0.828]
[1734012517572,2.6988545,3944.7,3944.2,0.828]
[1734012517728,0.1637945,3944.7,3944.2,0.828]
[1734012517924,0.1637945,3944.7,3943.9,0.8105]
[1734012518142,2.53537,3944.2,3943.9,0.8105]
[1734012518358,2.5352,3944.5,3943.9,0.8105]
[1734012518561,0.07919469,3944.4,3943.9,0.8105]
[1734012518758,2.53525,3944.4,3943.9,0.8105]
[1734012519089,0.55,3944.6,3943.9,0.8105]
[1734012519294,2.53546,3944.1,3943.2,0.7543]
[1734012519609,2.53547,3944.1,3943.2,0.7543]
[1734012519960,0.55,3944.6,3943.2,0.7543]
[1734012520167,0.07919857,3944.5,3943.2,0.7543]
[1734012520388,2.53562,3943.8,3943.2,0.7543]
[1734012520574,2.5355,3944.0,3943.2,0.7543]
[1734012520774,0.1637945,3944.7,3943.2,0.7543]
[1734012520775,0.1637945,3944.7,3943.3,0.7677]
[1734012520979,0.07918934,3944.6,3943.5,0.7677]
[1734012521175,2.61436896,3944.5,3943.5,3.7677]
[1734012521375,2.53518,3944.5,3943.5,3.7677]
[1734012521579,0.07919423,3944.4,3943.5,0.7677]
[1734012521753,0.1637945,3944.7,3943.5,0.7677]
[1734012521754,0.07919423,3944.3,3943.5,0.7677]
[1734012521951,0.07919423,3944.2,3943.5,0.7677]
[1734012522292,0.07919893,3944.1,3943.5,0.7677]
[1734012522491,0.55,3944.6,3943.5,0.7677]
[1734012522492,0.07919893,3944.0,3943.5,0.7677]
[1734012522697,2.53565,3943.8,3942.8,0.7677]
[1734012522865,0.07919893,3943.7,3942.8,0.7677]
[1734012523061,2.53565,3943.8,3942.8,0.7677]
[1734012523258,0.55,3944.2,3942.8,0.7677]
[1734012523519,2.61490545,3943.7,3942.8,0.7677]
[1734012523706,0.07920545,3943.6,3942.8,0.7677]
[1734012523922,0.55,3944.6,3942.9,3.0]
[1734012524145,2.53563,3943.8,3942.8,0.7677]
[1734012524334,0.07920504,3943.7,3942.8,0.7677]
[1734012524529,0.07920504,3943.6,3942.8,3.7677]
[1734012524749,0.51177689,3944.2,3942.8,0.7677]
[1734012524750,0.07920425,3943.5,3942.8,0.7677]
[1734012524949,0.07920425,3943.4,3942.8,0.7677]
[1734012525148,0.62920425,3943.3,3942.4,0.7765]
[1734012525351,0.62920425,3943.3,3940.9,0.12806348]
[1734012525352,2.5366,3942.3,3940.9,0.12806348]
[1734012525550,2.53627,3942.8,3941.6,2.53701]
[1734012525750,0.07922808,3942.7,3941.7,0.7556]
[1734012525960,0.07922808,3942.6,3941.9,2.53684]
[1734012526257,2.53594,3943.3,3942.2,2.53665]
[1734012526412,0.50726583,3943.5,3942.3,2.53654]
[1734012526413,0.07922046,3943.2,3942.3,2.53654]
[1734012526720,0.55,3943.8,3942.4,0.823]
[1734012526721,2.53595,3943.3,3942.4,0.823]
[1734012527139,0.55,3943.2,3942.4,0.823]
[1734012527337,0.55,3943.4,3942.4,0.823]
[1734012527534,2.53594,3943.4,3942.4,0.823]
[1734012527738,2.53601,3943.2,3942.4,0.823]
[1734012528653,2.536,3943.3,3942.4,0.823]
[1734012528853,0.07922127,3943.2,3942.4,0.823]
[1734012529074,0.07922127,3943.1,3942.4,3.35952]
[1734012529273,0.07922127,3943.0,3942.6,3.0]
[1734012529429,0.07922127,3942.9,3942.7,0.54039371]
[1734012529766,2.53586,3943.5,3942.4,3.823]
[1734012529992,0.07921482,3943.4,3942.5,3.0]
[1734012530125,0.07921482,3943.3,3942.5,3.0]
[1734012530326,0.07921482,3943.2,3942.5,3.0]
[1734012530522,0.07921482,3943.1,3942.7,3.32701]
[1734012530773,0.50960257,3943.8,3942.8,2.53626]
[1734012530774,0.07921482,3943.0,3942.8,2.53626]
[1734012530971,0.50960257,3943.8,3942.9,3.0]
[1734012531168,0.07920902,3943.7,3942.9,3.0]
[1734012531332,0.07920902,3943.6,3942.9,3.0]
[1734012531525,0.07920902,3943.5,3942.9,3.0]
[1734012531730,0.32488445,3944.5,3942.9,3.0]
[1734012531731,0.07920902,3943.4,3942.9,3.0]
[1734012531925,0.07920902,3943.3,3942.7,0.7907]
[1734012532177,2.6988945,3944.7,3943.3,3.0]
[1734012532469,2.61431668,3944.6,3943.5,3.0]
[1734012532771,0.07919668,3944.5,3943.4,0.8176]
[1734012532941,0.07919668,3944.4,3943.2,3.0]
[1734012533143,0.1637945,3944.7,3943.4,3.0]
[1734012533329,0.07918484,3944.6,3943.5,0.8129]
[1734012533524,0.07918484,3944.5,3943.9,3.8129]
[1734012533729,0.07918787,3944.4,3943.9,3.8129]
[1734012533931,0.1637945,3944.7,3943.9,3.8129]
[1734012534234,0.0791879,3944.6,3943.9,3.8129]
[1734012534428,0.0791879,3944.5,3943.9,3.8129]
[1734012534744,0.1637945,3944.7,3943.9,3.8129]
[1734012534939,0.07918778,3944.6,3943.9,3.8129]
[1734012535178,2.61436778,3944.5,3943.9,0.8129]
[1734012535347,0.07918778,3944.4,3943.9,0.8129]
[1734012535547,0.07918778,3944.3,3943.9,0.8129]
[1734012535745,2.53518,3944.5,3943.9,0.8129]
[1734012535967,0.07919022,3944.4,3943.9,0.8129]
[1734012536135,0.1637945,3944.7,3943.9,0.8129]
[1734012536331,0.0791871,3944.6,3943.9,0.8129]
[1734012536533,0.1637945,3944.7,3943.9,0.8129]
[1734012536731,0.07918448,3944.6,3943.9,0.8129]
[1734012536932,0.1637945,3944.7,3943.9,0.8129]
[1734012537147,0.07918463,3944.6,3943.9,0.8129]
[1734012537343,0.1637945,3944.7,3943.9,0.8129]
[1734012537645,2.53518,3944.5,3943.9,0.8129]
[1734012537834,0.0791878,3944.4,3943.9,0.8129]
[1734012538179,0.0791878,3944.3,3943.9,0.8129]
[1734012538495,2.53543,3944.1,3943.1,0.8224]
[1734012538780,2.61470929,3944.0,3943.1,0.8224]
[1734012538948,0.55,3944.3,3943.1,0.8224]
[1734012539135,2.53544,3944.1,3943.1,0.8224]
[1734012539333,0.07920194,3944.0,3943.1,0.8224]
[1734012539533,2.53544,3944.1,3943.1,0.8224]
[1734012539776,0.07920024,3944.0,3943.1,0.8224]
[1734012539979,0.55,3944.5,3943.1,0.8224]
[1734012540197,2.53543,3944.1,3943.1,0.8224]
[1734012540340,0.07919951,3944.0,3943.1,0.8224]
[1734012540536,1.04474441,3944.3,3943.1,0.8224]
[1734012540751,2.53546,3944.1,3943.1,0.8224]
[1734012540951,2.53546,3944.1,3943.1,3.8224]
[1734012541181,0.55,3944.3,3943.1,0.8224]
[1734012541380,0.07919666,3944.6,3943.3,3.819]
[1734012541536,0.07919666,3944.6,3943.1,5.50526161]
[1734012541537,0.1637945,3944.7,3943.7,3.0]
[1734012541738,0.07918854,3944.6,3943.8,0.819]
[1734012541976,0.1637945,3944.7,3943.8,3.35461]
[1734012542210,0.24298084,3944.7,3943.8,0.819]
[1734012542348,0.1637945,3944.7,3944.0,3.0]
[1734012542978,0.1637945,3944.7,3943.8,0.819]
[1734012543196,0.0791823,3944.6,3943.8,0.819]
[1734012543949,0.1637945,3944.7,3943.8,0.819]
[1734012544258,0.2429811,3944.7,3943.9,5.53553]
[1734012544654,0.1637945,3944.7,3943.9,5.53553]
[1734012544882,0.1637945,3944.7,3943.8,0.819]
[1734012545356,0.1637945,3944.7,3943.9,3.0]
[1734012545959,0.1637945,3944.7,3943.8,0.819]
[1734012546760,2.6988445,3944.7,3943.8,0.819]
[1734012546973,2.6988445,3944.7,3943.8,3.819]
[1734012547270,0.1637945,3944.7,3943.9,3.0]
[1734012547783,2.6988645,3944.7,3943.9,3.0]
[1734012547984,2.53511,3944.6,3943.8,0.819]
[1734012548290,0.1637945,3944.7,3944.3,3.0]
[1734012548497,0.1637945,3944.7,3944.6,2.53511]
[1734012548698,0.1637945,3944.7,3944.6,5.53511]
[1734012548885,0.1637945,3944.7,3944.6,6.31821]
[1734012549610,0.07917783,3946.5,3944.7,3.0]
[1734012549812,0.07917783,3946.7,3945.8,0.766]
[1734012550165,2.5339,3946.5,3945.8,0.766]
[1734012550394,0.51025269,3946.6,3945.8,0.766]
[1734012550711,3.04408269,3946.6,3945.8,0.766]
[1734012551887,0.51025269,3946.6,3945.8,0.766]
[1734012552225,2.5339,3946.5,3945.8,0.766]
[1734012552567,0.51025269,3946.6,3945.8,0.766]
[1734012552568,3.04408269,3946.6,3945.8,0.766]
[1734012552763,2.53409,3946.2,3945.8,0.766]
[1734012553004,0.51025269,3946.6,3945.8,0.766]
[1734012553005,2.53397,3946.4,3945.8,0.766]
[1734012553207,0.51025269,3946.6,3945.1,0.8262]
[1734012553429,3.10191741,3946.5,3945.1,0.8262]
[1734012553583,2.53421,3946.0,3945.1,0.8262]
[1734012553768,2.53408,3946.3,3945.1,0.8262]
[1734012553968,0.55,3946.5,3945.1,0.8262]
[1734012554165,2.53416,3946.1,3945.1,0.8262]
[1734012554412,2.53428,3945.9,3945.1,0.8262]
[1734012554576,2.53395,3946.4,3945.1,0.8262]
[1734012554768,2.53416,3946.1,3945.1,0.8262]
[1734012555015,3.08401,3946.3,3945.1,0.8262]
[1734012555196,2.53423,3946.0,3945.1,0.8262]
[1734012555789,1.55,3946.0,3945.1,0.8262]
[1734012556373,1.55,3946.0,3945.1,3.36097]
[1734012556610,1.55,3946.0,3945.2,3.0]
[1734012557387,1.55,3946.0,3945.1,0.8262]
[1734012557786,0.01802741,3945.9,3945.1,0.8262]
[1734012558015,2.53463,3945.4,3945.1,0.8262]
[1734012558317,2.53463,3945.4,3944.0,0.12811987]
[1734012558318,2.53497,3944.9,3943.7,0.89783372]
[1734012558618,0.51053567,3945.3,3943.7,0.89783372]
[1734012558785,2.53537,3944.2,3943.7,0.7731]
[1734012558978,0.01802741,3944.6,3943.7,0.7731]
[1734012559175,2.5353,3944.4,3943.7,0.7731]
[1734012560417,2.53537,3944.2,3943.7,0.7731]
[1734012560726,0.55,3945.2,3943.7,0.7731]
[1734012560727,2.53472,3945.2,3943.7,0.7731]
[1734012561086,0.55,3945.2,3943.7,0.7731]
[1734012561238,2.53509,3944.7,3943.7,0.7731]
[1734012561592,2.53514,3944.6,3943.7,3.7731]
[1734012561789,2.53485,3945.0,3943.7,0.7731]
[1734012562036,2.53516,3944.6,3943.7,0.7731]
[1734012562537,1.55,3944.6,3944.1,0.7942]
[1734012562936,1.55,3944.6,3944.1,3.32961]
[1734012563142,1.55,3944.6,3944.2,3.0]
[1734012563297,1.55,3944.6,3944.1,0.7942]
[1734012564439,4.08511,3944.6,3944.1,0.7942]
[1734012564938,1.55,3944.6,3944.1,0.7942]
[1734012565139,2.53525,3944.4,3944.1,0.7942]
[1734012565695,4.08525,3944.4,3944.1,0.7942]
[1734012566045,1.55,3944.4,3944.1,0.7942]
[1734012566398,1.55,3944.4,3943.3,3.7989]
[1734012566647,2.53537,3944.2,3943.3,3.7989]
[1734012566827,1.55,3944.4,3943.3,3.7989]
[1734012567362,4.08526,3944.4,3943.3,3.7989]
[1734012567818,1.55,3944.4,3943.5,3.0]
[1734012568138,1.55,3944.4,3943.3,3.7989]
[1734012568346,4.08525,3944.4,3943.3,3.7989]
[1734012568683,1.55,3944.4,3943.3,3.7989]
[1734012568845,2.53536,3944.3,3943.3,3.7989]
[1734012569049,3.1,3944.4,3943.4,2.53587]
[1734012569348,3.1,3944.4,3943.3,3.7989]
[1734012569349,3.1,3944.4,3943.6,3.0]
[1734012569656,3.1,3944.4,3943.7,0.7622]
[1734012569815,3.1,3944.4,3944.3,3.0]
[1734012570018,3.1,3944.4,3944.3,6.3552]
[1734012570412,2.2667,3944.4,3944.3,6.3552]
[1734012570632,0.57514701,3944.4,3944.3,6.3552]
[1734012570803,0.57514701,3944.4,3944.3,6.4829486]
[1734012571242,7.01e-06,3944.4,3944.3,6.4829486]
[1734012571408,1.55,3944.6,3944.3,6.4829486]
[1734012571409,1.55,3944.6,3944.5,5.53517]
[1734012571616,1.55,3944.6,3944.5,9.26817161]
[1734012572217,3.1,3944.6,3944.5,9.26817161]
[1734012572629,2.96644753,3944.6,3944.5,9.26817161]
[1734012572827,1.55,3945.3,3945.2,2.53472]
[1734012573149,1.55,3945.3,3945.2,9.30212161]
[1734012574656,0.24842501,3945.3,3945.2,9.30212161]
[1734012575160,1.55,3946.0,3945.9,6.31407]
[1734012575460,1.55,3946.0,3945.9,0.7798]
[1734012575669,3.1,3946.0,3945.9,3.7798]
[1734012575832,3.1,3946.0,3945.9,0.7798]
[1734012579159,3.1,3946.0,3944.6,0.30091272]
[1734012579160,4.65,3946.0,3945.2,0.797]
[1734012579520,7.18422,3946.0,3945.2,0.797]
[1734012579762,4.65,3946.0,3945.2,0.797]
[1734012580272,2.53434,3945.8,3944.7,0.797]
[1734012580561,7.18422,3946.0,3944.8,3.07533371]
[1734012580760,7.18422,3946.0,3944.7,3.797]
[1734012580761,2.53428,3945.9,3944.7,3.797]
[1734012580963,2.53428,3945.9,3944.9,3.0]
[1734012581420,4.65,3946.0,3944.9,3.0]
[1734012582325,6.2,3946.0,3944.7,3.797]
[1734012582525,6.2,3946.0,3945.3,3.0]
[1734012582720,6.2,3946.0,3945.7,2.5344]
[1734012583065,6.2,3946.0,3945.8,3.0]
[1734012583427,6.2,3946.0,3945.5,5.53452]
[1734012584962,6.2,3946.0,3945.6,2.53445]
[1734012585163,6.2,3946.0,3945.7,3.0]
[1734012585370,6.2,3946.0,3945.4,0.7606]
[1734012585865,7.75,3946.0,3945.4,0.7606]
[1734012586165,8.5578,3946.0,3945.3,3.0]
[1734012586367,8.5578,3946.0,3945.1,3.0]
[1734012586563,8.5578,3946.0,3945.3,3.0]
[1734012587061,7.75,3946.0,3945.6,3.0]
[1734012587465,7.75,3946.0,3945.9,3.0]
[1734012587685,7.75,3946.0,3945.2,3.35221]
[1734012587891,7.75,3946.0,3945.3,3.0]
[1734012588038,9.18139091,3946.0,3945.2,0.8175]
[1734012588238,9.18139091,3946.0,3945.1,2.53476]
[1734012588476,8.5221,3946.0,3944.9,0.8175]
[1734012588678,8.5221,3946.0,3945.0,2.53484]
[1734012589179,10.0721,3946.0,3945.0,2.53484]
[1734012589387,10.0721,3946.0,3945.0,2.96920161]
[1734012589546,9.3,3946.0,3945.6,3.0]
[1734012590381,9.3,3946.0,3945.0,2.96920161]
[1734012590546,9.3,3946.0,3945.8,3.0]
[1734012590753,9.3,3946.0,3945.4,3.0]
[1734012590959,9.3,3946.0,3945.9,5.53427]
[1734012591319,9.3,3946.0,3945.9,6.28717]
[1734012592601,10.85,3946.0,3945.9,6.28717]
[1734012593825,6.84731893,3946.0,3945.9,6.28717]
[1734012593955,0.8238,3947.7,3947.3,2.53335]
[1734012594161,0.8086,3948.1,3947.4,3.0]
[1734012594871,0.8086,3948.1,3947.3,3.0]
[1734012595312,0.8086,3948.1,3946.8,0.7853]
[1734012595604,3.34146,3948.1,3947.0,2.53356]
[1734012595763,4.89146,3948.1,3947.1,3.0]
[1734012596505,2.3586,3948.1,3947.1,3.0]
[1734012596706,2.3586,3948.1,3947.0,3.0]
[1734012596707,0.28693435,3948.0,3947.0,3.0]
[1734012597003,2.3586,3948.1,3946.8,0.7853]
[1734012597004,2.3586,3948.1,3947.3,3.0]
[1734012597175,2.3586,3948.1,3947.5,3.0]
[1734012597379,1.55,3948.1,3947.1,2.5335]
[1734012597707,1.55,3948.1,3947.7,2.5331]
[1734012597916,1.55,3948.1,3947.3,0.7863]
[1734012597917,1.55,3948.1,3948.0,5.53292]
[1734012598060,1.55,3948.1,3948.0,6.31922]
[1734012598786,1.55,3948.1,3948.0,3.7863]
[1734012599013,1.55,3948.1,3947.7,0.31376237]
[1734012599214,3.1,3948.1,3947.7,3.0]
[1734012599790,3.1,3948.1,3947.6,0.7863]
[1734012600293,3.1,3948.1,3947.6,3.7863]
[1734012600505,3.1,3948.1,3946.9,2.96920161]
[1734012600708,0.7733,3948.0,3947.1,0.50398723]
[1734012601003,0.7733,3948.0,3946.9,0.8265]
[1734012601194,2.533,3947.9,3946.9,0.8265]
[1734012601393,0.7733,3948.0,3946.9,0.8265]
[1734012601800,0.7733,3948.0,3946.8,0.12684488]
[1734012601999,3.1,3948.1,3946.3,0.8194]
[1734012602000,2.53334,3947.4,3946.3,0.8194]
[1734012602234,2.53334,3947.4,3945.6,2.0]
[1734012602235,2.5337,3946.8,3945.8,0.12347565]
[1734012602435,0.7787,3947.2,3945.1,2.96920161]
[1734012602669,2.53366,3946.9,3945.4,0.49765828]
[1734012602873,2.53379,3946.7,3945.5,2.53451]
[1734012603167,0.802,3946.8,3945.1,2.96920161]
[1734012603315,0.802,3946.8,3945.0,0.8194]
[1734012603316,2.53415,3946.1,3945.0,0.8194]
[1734012603519,2.53418,3946.1,3945.0,0.94662001]
[1734012603715,2.53422,3946.0,3945.0,0.8194]
[1734012604476,2.53448,3945.6,3944.6,1.39761879]
[1734012604618,0.797,3945.7,3944.2,0.88282474]
[1734012604954,0.797,3945.7,3943.9,2.96920161]
[1734012604955,2.53486,3945.0,3943.9,2.96920161]
[1734012605320,2.53486,3945.0,3943.8,0.7585]
[1734012605522,0.797,3945.1,3943.8,0.7585]
[1734012605523,2.53497,3944.9,3943.8,0.7585]
[1734012605730,1.55,3945.0,3943.8,3.29406]
[1734012605932,1.55,3945.0,3943.8,0.7585]
[1734012605933,4.08485,3945.0,3943.8,0.7585]
[1734012606147,2.53492,3944.9,3943.6,3.0]
[1734012606763,2.53506,3944.7,3943.5,0.6279552]
[1734012607062,2.53506,3944.7,3943.4,0.8147]
[1734012607063,0.7976,3944.5,3943.4,0.8147]
[1734012607368,0.7976,3944.5,3943.6,2.53573]
[1734012607656,0.7976,3944.5,3943.4,1.32577626]
[1734012607657,1.55,3945.0,3943.9,5.50474161]
[1734012607863,2.53498,3944.8,3943.5,5.50501161]
[1734012608026,1.55,3945.0,3943.5,2.96920161]
[1734012608221,1.55,3945.0,3943.8,3.0]
[1734012608466,1.55,3945.0,3943.5,2.96920161]
[1734012608467,1.55,3945.0,3943.6,3.0]
[1734012608834,0.7879,3944.9,3943.6,3.0]
[1734012609034,0.55,3944.8,3943.6,3.0]
[1734012609238,0.7879,3944.9,3943.6,3.0]
[1734012609239,0.7879,3944.9,3943.7,2.53563]
[1734012609438,5.6349,3945.0,3943.6,3.0]
[1734012609439,3.1,3945.0,3944.1,2.53543]
[1734012609669,3.1,3945.0,3944.4,3.0]
[1734012610775,3.1,3945.0,3944.0,0.4957974]
[1734012611079,3.1,3945.0,3944.2,3.0]
[1734012611283,3.1,3945.0,3944.0,0.4957974]
[1734012611571,3.1,3945.0,3943.9,3.0]
[1734012611778,3.1,3945.0,3944.1,2.53542]
[1734012611980,3.1,3945.0,3944.4,3.0]
[1734012612761,4.65,3945.0,3944.4,3.0]
[1734012612966,4.65,3945.0,3944.8,2.96920161]
[1734012613177,4.65,3945.0,3944.9,5.53491]
[1734012614738,4.65,3945.0,3944.9,3.0]
[1734012614961,5.4745,3945.0,3944.5,3.0]
[1734012615161,5.4745,3945.0,3944.4,2.96920161]
[1734012615333,5.4745,3945.0,3944.0,2.96920161]